fUSD/lending_fUSD_20241231
["ID","MTS","AMOUNT","RATE_DAILY","PERIOD"]
[347291642,1735662569288,-150.0,0.00011121,2]
[347291643,1735662569310,-792.28536912,0.00011136,2]
[347291644,1735662580650,-291.79,0.00011136,2]
[347291645,1735662606994,1852.42,0.00011126,2]
[347291710,1735662633386,-753.11366526,0.00011116,2]
[347291715,1735662633418,-1246.88633474,0.00011116,2]
[347291717,1735662633427,-279.2,0.00011409,2]
[347291719,1735662633438,-315.19,0.00011435,2]
[347291721,1735662633447,-1340.983,0.00011499,2]
[347291723,1735662633456,-162.869,0.00011499,2]
[347291725,1735662633466,-223.906,0.000115,2]
[347291727,1735662633475,-1950.96566556,0.000115,2]
[347291729,1735662633487,-5646.58959978,0.000115,2]
[347291731,1735662633499,-5110.8153108,0.000115,2]
[347291733,1735662633510,-3221.218,0.000115,2]
[347291736,1735662633524,-372.9696363,0.000115,2]
[347291742,1735662633577,-4721.291076,0.000115,2]
[347291752,1735662633665,-28183.86534244,0.000115,2]
[347291754,1735662633675,-500.0,0.00011699,2]
[347291756,1735662633684,-796.91198377,0.00011744,2]
[347291758,1735662633694,-12501.1212,0.00011806,2]
[347291760,1735662633703,-3734.9731,0.00011906,2]
[347291762,1735662633713,-4295.5834,0.00011906,2]
[347291764,1735662633722,-5692.09069764,0.00011906,2]
[347291767,1735662633733,-13535.20261958,0.00011906,2]
[347291769,1735662633745,-765.05354712,0.00011906,2]
[347292107,1735662638763,-62053.43583566,0.00011906,2]
[347292109,1735662638772,-6235.1897,0.00011906,2]
[347292111,1735662638782,-889.0799,0.00011906,2]
[347292113,1735662638791,-151.65,0.00011908,2]
[347292115,1735662638800,-3000.0,0.0001198,2]
[347292117,1735662638810,-981.2862495,0.00011999,2]
[347292119,1735662638819,-450.0,0.00012,2]
[347292121,1735662638828,-164.65862884,0.00012005,2]
[347292123,1735662638838,-165.48061746,0.00012006,2]
[347292125,1735662638847,-239.4017,0.00012006,2]
[347292127,1735662638856,-5980.1711,0.00012006,2]
[347292129,1735662638864,-66047.5565,0.00012006,2]
[347292131,1735662638873,-1000.0,0.00012006,2]
[347292134,1735662638883,-22012.6605,0.00012006,2]
[347292136,1735662638892,-496.8503,0.00012006,2]
[347292139,1735662638901,-5000.0,0.00012006,2]
[347292141,1735662638911,-356.78245066,0.00012044,2]
[347292143,1735662638920,-23582.98,0.00012055,2]
[347292145,1735662638929,-500.0,0.00012055,2]
[347292147,1735662638937,-165.48061746,0.00012099,2]
[347292149,1735662638946,-1000.0,0.000121,2]
[347292151,1735662638955,-250.0,0.000121,2]
[347292153,1735662638964,-250.0,0.000121,2]
[347292155,1735662638973,-250.0,0.000121,2]
[347292157,1735662638982,-250.0,0.000121,2]
[347292159,1735662638991,-250.0,0.000121,2]
[347292161,1735662639002,-250.0,0.000121,2]
[347292163,1735662639011,-250.0,0.000121,2]
[347292165,1735662639020,-250.0,0.000121,2]
[347292167,1735662639029,-250.0,0.000121,2]
[347292169,1735662639038,-250.0,0.000121,2]
[347292171,1735662639047,-250.0,0.000121,2]
[347292173,1735662639056,-250.0,0.000121,2]
[347292175,1735662639065,-250.0,0.000121,2]
[347292177,1735662639074,-250.0,0.000121,2]
[347292179,1735662639083,-250.0,0.000121,2]
[347292181,1735662639092,-250.0,0.000121,2]
[347292183,1735662639101,-250.0,0.000121,2]
[347292185,1735662639111,-250.0,0.000121,2]
[347292187,1735662639120,-250.0,0.000121,2]
[347292188,1735662639129,-250.0,0.000121,2]
[347292190,1735662639138,-250.0,0.000121,2]
[347292192,1735662639147,-250.0,0.000121,2]
[347292194,1735662639156,-250.0,0.000121,2]
[347292196,1735662639165,-250.0,0.000121,2]
[347292198,1735662639174,-250.0,0.000121,2]
[347292200,1735662639183,-250.0,0.000121,2]
[347292202,1735662639193,-250.0,0.000121,2]
[347292204,1735662639202,-250.0,0.000121,2]
[347292206,1735662639211,-250.0,0.000121,2]
[347292208,1735662639220,-250.0,0.000121,2]
[347292210,1735662639230,-250.0,0.000121,2]
[347292212,1735662639240,-250.0,0.000121,2]
[347292214,1735662639252,-250.0,0.000121,2]
[347292216,1735662639261,-250.0,0.000121,2]
[347292218,1735662639271,-250.0,0.000121,2]
[347292220,1735662639280,-250.0,0.000121,2]
[347292222,1735662639290,-250.0,0.000121,2]
[347292224,1735662639299,-250.0,0.000121,2]
[347292226,1735662639309,-250.0,0.000121,2]
[347292228,1735662639318,-500.0,0.00012105,2]
[347292230,1735662639327,-500.0,0.00012105,2]
[347292232,1735662639337,-500.0,0.00012105,2]
[347292234,1735662639346,-455.97298244,0.00012105,2]
[347292236,1735662639356,-528.48766982,0.00012105,2]
[347292238,1735662639365,-38000.0,0.00012105,2]
[347292240,1735662639374,-500.0,0.00012105,2]
[347292242,1735662639383,-504.0,0.00012106,2]
[347292244,1735662639393,-2310480.97425451,0.00012106,4]
[347292246,1735662639402,-2000.0,0.00012106,2]
[347292248,1735662639412,-200.0,0.00012106,2]
[347292250,1735662639421,-200.0,0.00012106,2]
[347292252,1735662639431,-2000.0,0.00012106,2]
[347292254,1735662639440,-200.0,0.00012106,2]
[347292256,1735662639449,-1000.0,0.00012106,2]
[347292258,1735662639458,-1000.0,0.00012106,2]
[347292260,1735662639467,-1000.0,0.00012106,2]
[347292262,1735662639477,-1000.0,0.00012106,2]
[347292264,1735662639486,-1000.0,0.00012106,2]
[347292266,1735662639496,-1000.0,0.00012106,2]
[347292268,1735662639507,-1000.0,0.00012106,2]
[347292270,1735662639522,-1000.0,0.00012106,2]
[347292272,1735662639531,-1000.0,0.00012106,2]
[347292274,1735662639543,-1000.0,0.00012106,2]
[347292276,1735662639553,-1000.0,0.00012106,2]
[347292278,1735662639564,-1000.0,0.00012106,2]
[347292280,1735662639573,-1000.0,0.00012106,2]
[347292282,1735662639582,-1000.0,0.00012106,2]
[347292284,1735662639592,-1000.0,0.00012106,2]
[347292286,1735662639601,-1000.0,0.00012106,2]
[347292288,1735662639610,-1000.0,0.00012106,2]
[347292290,1735662639620,-1000.0,0.00012106,2]
[347292292,1735662639630,-1000.0,0.00012106,2]
[347292294,1735662639639,-1000.0,0.00012106,2]
[347292296,1735662639649,-1000.0,0.00012106,2]
[347292298,1735662639658,-1000.0,0.00012106,2]
[347292300,1735662639669,-1000.0,0.00012106,2]
[347292302,1735662639687,-1000.0,0.00012106,2]
[347292304,1735662639696,-1000.0,0.00012106,2]
[347292306,1735662639709,-1000.0,0.00012106,2]
[347292308,1735662639724,-1000.0,0.00012106,2]
[347292310,1735662639734,-1000.0,0.00012106,2]
[347292312,1735662639743,-1000.0,0.00012106,2]
[347292314,1735662639755,-1000.0,0.00012106,2]
[347292316,1735662639766,-1000.0,0.00012106,2]
[347292318,1735662639775,-1000.0,0.00012106,2]
[347292320,1735662639784,-248.88764356,0.00012106,2]
[347292322,1735662639794,-155.224813,0.00012107,2]
[347292324,1735662639803,-187.197182,0.00012107,2]
[347292326,1735662639813,-24089.99580071,0.00012128,2]
[347292329,1735662639822,-356.44797086,0.00012173,2]
[347292331,1735662639832,-500.0,0.00012173,2]
[347292333,1735662639841,-500.0,0.00012173,2]
[347292335,1735662639851,-179062.09960227,0.0001218,2]
[347292336,1735662639860,-150.0,0.0001218,2]
[347292339,1735662639869,-165.48061746,0.00012193,2]
[347292341,1735662639879,-150.0,0.00012202,2]
[347292343,1735662639889,-500.0,0.00012207,2]
[347292345,1735662639898,-150.0,0.00012208,2]
[347292346,1735662639907,-200.0,0.00012208,2]
[347292348,1735662639917,-9600.0,0.00012208,2]
[347292351,1735662639927,-634.0,0.00012208,2]
[347292353,1735662639940,-150.0,0.0001221,2]
[347292355,1735662639949,-150.0,0.00012211,2]
[347292357,1735662639959,-150.0,0.00012218,2]
[347292359,1735662639969,-150.0,0.00012225,2]
[347292361,1735662639979,-2000.0,0.00012227,2]
[347292363,1735662639988,-200.0,0.00012227,2]
[347292365,1735662639997,-624.88780523,0.00012227,2]
[347292367,1735662640007,-150.0,0.00012229,2]
[347292369,1735662640015,-150.0,0.00012231,2]
[347292371,1735662640025,-150.0,0.00012233,2]
[347292373,1735662640034,-170.6369314,0.00012238,2]
[347292374,1735662640043,-150.0,0.00012239,2]
[347292375,1735662640053,-150.0,0.00012241,2]
[347292376,1735662640062,-500.0,0.00012242,2]
[347292377,1735662640071,-150.0,0.00012246,2]
[347292378,1735662640080,-150.0,0.00012263,2]
[347292379,1735662640090,-150.0,0.00012267,2]
[347292380,1735662640099,-150.0,0.00012267,2]
[347292381,1735662640109,-150.0,0.00012268,2]
[347292382,1735662640118,-150.0,0.00012275,2]
[347292383,1735662640127,-150.0,0.00012276,2]
[347292385,1735662640137,-165.48061746,0.00012286,2]
[347292387,1735662640146,-184.1474709,0.00012286,2]
[347292389,1735662640156,-150.0,0.00012293,2]
[347292391,1735662640166,-150.0,0.00012298,2]
[347292393,1735662640176,-150.0,0.00012304,2]
[347292395,1735662640187,-1500.0,0.00012315,2]
[347292397,1735662640197,-150.0,0.00012317,2]
[347292400,1735662640206,-150.0,0.00012318,2]
[347292402,1735662640215,-150.0,0.00012326,2]
[347292404,1735662640224,-150.0,0.00012327,2]
[347292406,1735662640233,-1900.0,0.00012334,2]
[347292408,1735662640243,-1032.949,0.00012334,2]
[347292410,1735662640252,-1257.667,0.00012334,2]
[347292412,1735662640261,-3772.0,0.00012334,2]
[347292415,1735662640270,-831.0,0.00012334,2]
[347292417,1735662640280,-3685.0,0.00012334,2]
[347292419,1735662640289,-536.0,0.00012334,2]
[347292421,1735662640298,-636.0,0.00012334,2]
[347292423,1735662640307,-1266.0,0.00012334,2]
[347292425,1735662640317,-2012.0,0.00012334,2]
[347292427,1735662640327,-150.0,0.00012336,2]
[347292429,1735662640335,-150.0,0.00012336,2]
[347292431,1735662640345,-150.0,0.00012342,2]
[347292433,1735662640354,-184.14747088,0.00012343,2]
[347292435,1735662640363,-150.0,0.00012344,2]
[347292437,1735662640372,-200.0,0.00012349,2]
[347292439,1735662640382,-300.0,0.00012349,2]
[347292441,1735662640391,-150.0,0.00012352,2]
[347292443,1735662640401,-150.0,0.00012353,2]
[347292445,1735662640410,-150.0,0.00012356,2]
[347292447,1735662640420,-150.0,0.00012357,2]
[347292449,1735662640429,-150.0,0.00012359,2]
[347292451,1735662640438,-1500.0,0.00012359,2]
[347292453,1735662640448,-150.0,0.00012359,2]
[347292455,1735662640457,-150.0,0.00012359,2]
[347292457,1735662640466,-156.928,0.00012361,2]
[347292459,1735662640476,-200.0,0.00012361,2]
[347292461,1735662640486,-150.0,0.00012361,2]
[347292463,1735662640495,-173.633,0.00012361,2]
[347292465,1735662640506,-150.449,0.00012361,2]
[347292467,1735662640515,-204.824,0.00012361,2]
[347292468,1735662640525,-154.071,0.00012361,2]
[347292471,1735662640534,-199.236,0.00012361,2]
[347292472,1735662640543,-150.0,0.00012367,2]
[347292475,1735662640554,-150.0,0.00012371,2]
[347292477,1735662640564,-150.0,0.00012373,2]
[347292479,1735662640573,-150.0,0.00012375,2]
[347292481,1735662640583,-21349.21830144,0.00012378,2]
[347292483,1735662640592,-219.8941,0.00012379,2]
[347292485,1735662640602,-472.24,0.00012379,2]
[347292487,1735662640611,-621.93,0.00012379,2]
[347292489,1735662640620,-13339956.43357928,0.0001238,2]
[347292491,1735662640629,-150.0,0.00012386,2]
[347292493,1735662640639,-33221.15643814,0.00012399,2]
[347292495,1735662640648,-33221.15643812,0.00012399,2]
[347292497,1735662640658,-33221.15643812,0.00012399,2]
[347292499,1735662640667,-33221.15643812,0.00012399,2]
[347292501,1735662640677,-33221.15643812,0.00012399,2]
[347292503,1735662640686,-33221.15643812,0.00012399,2]
[347292505,1735662640695,-33221.15643812,0.00012399,2]
[347292507,1735662640704,-33221.15643812,0.00012399,2]
[347292509,1735662640714,-33221.15643812,0.00012399,2]
[347292511,1735662640723,-33221.15643812,0.00012399,2]
[347292513,1735662640732,-2003.15855401,0.000124,2]
[347292515,1735662640741,-500.0,0.000124,2]
[347292517,1735662640751,-184.14747088,0.000124,2]
[347292519,1735662640763,-1500.0,0.00012402,2]
[347292521,1735662640775,-150.0,0.00012405,2]
[347292523,1735662640786,-150.0,0.00012406,2]
[347292525,1735662640796,-150.0,0.00012408,2]
[347292527,1735662640805,-150.0,0.00012416,2]
[347292529,1735662640814,-150.0,0.0001242,2]
[347292531,1735662640824,-150.0,0.00012426,2]
[347292533,1735662640833,-500.0,0.00012427,2]
[347292535,1735662640841,-150.0,0.00012436,2]
[347292536,1735662640852,-150.0,0.00012447,2]
[347292539,1735662640863,-150.0,0.00012449,2]
[347292541,1735662640873,-95209.43644033,0.00012454,2]
[347292543,1735662640882,-500.0,0.00012454,2]
[347292545,1735662640891,-150.0,0.00012454,2]
[347292547,1735662640901,-150.0,0.00012456,2]
[347292549,1735662640910,-150.0,0.00012457,2]
[347292551,1735662640919,-150.0,0.00012457,2]
[347292552,1735662640929,-150.0,0.00012471,2]
[347292554,1735662640938,-150.0,0.00012472,2]
[347292557,1735662640948,-12988.35599061,0.0001248,2]
[347292559,1735662640958,-12988.35599061,0.0001248,2]
[347292561,1735662640968,-150.0,0.00012481,2]
[347292563,1735662640977,-12988.35599061,0.00012481,2]
[347292565,1735662640987,-12988.35599061,0.00012482,2]
[347292567,1735662640996,-500.0,0.00012482,2]
[347292568,1735662641006,-1000.0,0.00012487,2]
[347292570,1735662641015,-12988.35599061,0.00012489,2]
[347292572,1735662641024,-742752.65046321,0.0001249,2]
[347292573,1735662641033,-28471.65933786,0.0001249,2]
[347292575,1735662641043,-12988.35599061,0.00012493,2]
[347292577,1735662641052,-7946.41076536,0.000125,2]
[347292578,1735662641061,-2507855.03000354,0.000125,2]
[347292580,1735662641070,-3661764.00262083,0.000125,2]
[347292604,1735662641374,-4988.758428,0.000125,2]
[347292613,1735662641473,-103283.55982868,0.000125,2]
[347292623,1735662641589,-2984.19087952,0.000125,2]
[347292625,1735662641600,-500.72386877,0.000125,2]
[347292627,1735662641611,-9739.2,0.000125,2]
[347292880,1735662644073,-500.0136496,0.000125,2]
[347292883,1735662644085,-680.90665295,0.000125,2]
[347292885,1735662644096,-610.35,0.000125,2]
[347292887,1735662644107,-3448.70284767,0.000125,2]
[347292889,1735662644118,-1452.21272233,0.000125,2]
[347292891,1735662644130,-257181.50063969,0.000125,2]
[347292894,1735662644141,-3322.214,0.000125,2]
[347292915,1735662644335,-398.71768278,0.000125,2]
[347292917,1735662644346,-3186.60847537,0.000125,2]
[347292919,1735662644356,-14240.46841869,0.000125,2]
[347292922,1735662644367,-4499.527409,0.000125,2]
[347292929,1735662644429,-9316.46489366,0.000125,2]
[347292931,1735662644441,-352.87584249,0.000125,2]
[347292937,1735662644486,-390.242268,0.000125,2]
[347292939,1735662644497,-1953.27079105,0.000125,2]
[347292942,1735662644509,-525.755001,0.000125,2]
[347292946,1735662644536,-2425.69185267,0.000125,2]
[347292948,1735662644548,-1107.43315,0.000125,2]
[347292959,1735662644639,-4709.3,0.000125,2]
[347292961,1735662644651,-2550144.98067225,0.000125,2]
[347292962,1735662644662,-2104049.91750047,0.000125,2]
[347292964,1735662644927,-477246.22435891,0.000125,2]
[347292967,1735662644943,-6168.92337738,0.000125,2]
[347293332,1735662648499,-150.419,0.00012208,2]
[347293334,1735662648509,-60803.9779806,0.000125,2]
[347293342,1735662648588,-2908.26112629,0.000125,2]
[347293346,1735662648619,-278.67800001,0.000125,2]
[347293354,1735662648682,-987.01,0.000125,2]
[347293598,1735662651238,-473.7,0.000121,2]
[347293600,1735662651247,-4445.20264871,0.000125,2]
[347293602,1735662651259,-23863.5968064,0.000125,2]
[347293604,1735662651272,-4358.7262,0.000125,2]
[347293660,1735662651799,-4765.6,0.000125,2]
[347293774,1735662903645,160.0,0.000125,30]
[347293775,1735662904137,160.0,0.00014289,30]
[347293776,1735663068568,194.19,0.00010137,2]
[347293778,1735663207983,160.0,0.000125,30]
[347293779,1735663208276,160.0,0.00015005,30]
[347293782,1735663503486,342.94,0.0001,30]
[347293783,1735663504573,160.0,0.000125,30]
[347293784,1735663575104,1725.28,0.00010731,2]
[347293785,1735663616925,306.81,8.832e-05,2]
[347293786,1735663622112,5629.51,0.0001075,2]
[347293787,1735663622136,10000.0,0.0001075,2]
[347293788,1735663622157,8270.49,0.0001075,2]
[347293789,1735663637974,250.0,0.00010726,2]
[347293790,1735663666637,300.0,0.00010726,2]
[347293791,1735663719586,1067.31,0.0001071,2]
[347293792,1735663733589,112.2,0.00010986,2]
[347293793,1735663733611,287.8,0.00010986,2]
[347293794,1735663781923,-306.81,0.00011096,2]
[347293795,1735663781944,-267.59042349,0.00011187,2]
[347293796,1735663798898,-5301.5359,0.00011213,2]
[347293797,1735663798922,-1000.0,0.00011287,2]
[347293798,1735663798944,-2836.26367651,0.00011287,2]
[347293799,1735663803138,342.94,0.0001,30]
[347293800,1735663803963,160.0,0.000125,30]
[347293801,1735663813053,-46.29632349,0.00011287,2]
[347293802,1735663813076,-721.06,0.00011308,2]
[347293803,1735663813104,-721.06,0.00011311,2]
[347293804,1735663813127,-721.06,0.00011314,2]
[347293805,1735663813150,-7790.52367651,0.00011316,2]
[347293806,1735663815569,209.45,0.00010751,2]
[347293807,1735663820702,353.26,0.00010803,2]
[347293839,1735663831917,-506.6,0.00011316,2]
[347293840,1735663831979,-41702.87632349,0.00011316,2]
[347293841,1735663831989,-721.06,0.00011317,2]
[347293842,1735663832000,-721.06,0.00011319,2]
[347293843,1735663832010,-721.06,0.00011322,2]
[347293844,1735663832019,-721.06,0.00011325,2]
[347293845,1735663832028,-721.06,0.00011328,2]
[347293846,1735663832038,-250.0,0.00011329,2]
[347293847,1735663832048,-721.06,0.00011331,2]
[347293848,1735663832057,-721.06,0.00011334,2]
[347293849,1735663832067,-721.06,0.00011337,2]
[347293850,1735663832076,-721.06,0.0001134,2]
[347293851,1735663832086,-721.06,0.00011343,2]
[347293852,1735663832095,-721.06,0.00011346,2]
[347293854,1735663832106,-721.06,0.00011349,2]
[347293856,1735663832117,-964.25,0.00011349,2]
[347293858,1735663832127,-721.06,0.00011352,2]
[347293860,1735663832136,-721.06,0.00011355,2]
[347293862,1735663832147,-721.06,0.00011358,2]
[347293863,1735663832157,-721.06,0.00011361,2]
[347293865,1735663832166,-721.06,0.00011364,2]
[347293867,1735663832175,-424.46,0.00011372,2]
[347293869,1735663832186,-250.0,0.00011415,2]
[347293871,1735663832196,-812.0,0.00011507,2]
[347293873,1735663832205,-214.559,0.0001188,2]
[347293875,1735663832215,-1000.0,0.00011906,2]
[347293876,1735663832224,-450.0,0.00012,2]
[347293879,1735663832234,-585.83,0.00012,2]
[347293881,1735663832244,-771.1,0.00012,2]
[347293882,1735663832256,-152.57,0.00012012,2]
[347293884,1735663832265,-151.22,0.00012012,2]
[347293886,1735663832274,-186.777211,0.000121,2]
[347293888,1735663832283,-151.63,0.00012128,2]
[347293890,1735663832293,-356.78245067,0.00012195,2]
[347293892,1735663832302,-150.52,0.000122,2]
[347293894,1735663832312,-872.56,0.000122,2]
[347293897,1735663832322,-186.47701181,0.000122,2]
[347293900,1735663832350,-250.92298819,0.000122,2]
[347293903,1735663832361,-976.98,0.000122,2]
[347293904,1735663832370,-1079.15416442,0.0001225,2]
[347293907,1735663832382,-53.49036053,0.0001225,2]
[347293909,1735663832391,-1087.00325565,0.0001225,2]
[347293910,1735663832400,-490.6431247,0.0001225,2]
[347293911,1735663832410,-2500.0,0.00012299,2]
[347293912,1735663832419,-167.12359689,0.00012299,2]
[347293914,1735663832429,-4571.3518,0.000123,2]
[347293916,1735663832438,-165.48061746,0.000123,2]
[347293918,1735663832448,-151.09,0.00012346,2]
[347293921,1735663832457,-811.81724477,0.00012346,2]
[347293934,1735663832580,-1200.18275523,0.00012346,2]
[347293936,1735663832590,-1280.126,0.00012346,2]
[347293938,1735663832599,-212.269,0.00012346,2]
[347293940,1735663832608,-635.39,0.00012346,2]
[347293942,1735663832618,-256.49,0.00012346,2]
[347293944,1735663832628,-566.0,0.00012346,2]
[347293946,1735663832637,-1900.0,0.00012346,2]
[347293948,1735663832646,-819.0,0.00012346,2]
[347293950,1735663832655,-3772.0,0.00012346,2]
[347293952,1735663832665,-924.0,0.00012346,2]
[347293954,1735663832674,-1256.0,0.00012346,2]
[347293956,1735663832683,-3685.0,0.00012346,2]
[347293958,1735663832692,-536.0,0.00012346,2]
[347293994,1735663833030,-3889.0,0.00012346,2]
[347293996,1735663833040,-1171.0,0.00012346,2]
[347293998,1735663833051,-150.0,0.00012346,2]
[347294000,1735663833062,-9600.0,0.00012346,2]
[347294001,1735663833073,-1834.81293,0.0001237,2]
[347294003,1735663833082,-500.0,0.00012373,2]
[347294005,1735663833092,-13677.87838781,0.00012399,2]
[347294008,1735663833104,-24713.40265382,0.00012399,2]
[347294028,1735663833359,-8179.70512789,0.00012399,2]
[347294029,1735663833369,-46570.98616943,0.00012399,2]
[347294030,1735663833379,-46570.98616943,0.00012399,2]
[347294031,1735663833389,-46570.98616943,0.00012399,2]
[347294032,1735663833399,-40099.61379857,0.00012399,2]
[347294033,1735663833458,-2042.9495505,0.00012399,2]
[347294034,1735663833470,-424.83992529,0.00012399,2]
[347294035,1735663833481,-1830.0,0.00012399,2]
[347294051,1735663837702,-500.0,0.000114,2]
[347294052,1735663837712,-1000.0,0.00011948,2]
[347294053,1735663837721,-150.0,0.00012346,2]
[347294054,1735663837732,-2173.58289507,0.00012399,2]
[347294055,1735663837743,-46570.98616943,0.00012399,2]
[347294056,1735663837754,-46570.98616943,0.00012399,2]
[347294057,1735663837764,-46570.98616943,0.00012399,2]
[347294058,1735663837774,-46570.98616943,0.00012399,2]
[347294059,1735663837784,-24137.91028164,0.00012399,2]
[347294060,1735663837794,-24137.91028164,0.00012399,2]
[347294061,1735663837803,-24137.91028164,0.00012399,2]
[347294062,1735663837813,-24137.91028164,0.00012399,2]
[347294063,1735663837822,-24137.91028164,0.00012399,2]
[347294064,1735663837832,-24137.91028164,0.00012399,2]
[347294066,1735663837841,-24137.91028164,0.00012399,2]
[347294068,1735663837850,-24137.91028164,0.00012399,2]
[347294070,1735663837859,-24137.91028164,0.00012399,2]
[347294072,1735663837869,-691.0,0.000124,2]
[347294074,1735663837878,-5561.0,0.000124,5]
[347294076,1735663837888,-1085626.5409,0.000124,2]
[347294078,1735663837897,-500.0,0.000124,2]
[347294080,1735663837907,-46570.98616943,0.000124,2]
[347294082,1735663837916,-24137.91028164,0.000124,2]
[347294084,1735663837925,-500.0,0.00012427,2]
[347294086,1735663837934,-500.0,0.00012454,2]
[347294088,1735663837943,-2229.40379222,0.00012464,2]
[347294090,1735663837953,-1877.756,0.00012467,2]
[347294092,1735663837962,-165.146,0.00012467,2]
[347294094,1735663837971,-2229.40379222,0.00012467,2]
[347294096,1735663837982,-10823.62999218,0.0001247,2]
[347294098,1735663837992,-2229.40379222,0.00012471,2]
[347294099,1735663838002,-625.09505453,0.00012473,2]
[347294101,1735663838012,-2229.40379222,0.00012478,2]
[347294103,1735663838021,-10823.62999218,0.0001248,2]
[347294105,1735663838031,-2229.40379222,0.00012481,2]
[347294107,1735663838040,-500.0,0.00012482,2]
[347294109,1735663838049,-10823.62999218,0.00012483,2]
[347294111,1735663838058,-2229.40379222,0.00012484,2]
[347294113,1735663838067,-10823.62999218,0.00012484,2]
[347294115,1735663838076,-625.09505453,0.00012485,2]
[347294117,1735663838085,-625.09505453,0.00012488,2]
[347294119,1735663838095,-10823.62999218,0.00012489,2]
[347294121,1735663838104,-10823.62999218,0.00012489,2]
[347294123,1735663838118,-2531.38379148,0.0001249,3]
[347294125,1735663838127,-625.09505453,0.00012493,2]
[347294127,1735663838136,-625.09505453,0.00012495,2]
[347294129,1735663838147,-625.09505453,0.00012497,2]
[347294131,1735663838156,-311.25449652,0.00012497,2]
[347294134,1735663838165,-885.43,0.00012499,2]
[347294137,1735663838174,-1138746.78113851,0.000125,2]
[347294139,1735663838183,-293.83511211,0.000125,2]
[347294141,1735663838193,-5287340.16864425,0.000125,2]
[347294144,1735663838203,-18333.50862995,0.000125,2]
[347294145,1735663838213,-1203618.27242958,0.000125,2]
[347294265,1735663839344,-11316.46040635,0.000125,2]
[347294267,1735663839355,-3310.42,0.000125,2]
[347294269,1735663839364,-13782.54490837,0.000125,2]
[347294290,1735663839526,-523.24999839,0.000125,2]
[347294391,1735663840565,-3294.73036449,0.00012299,2]
[347294395,1735663840597,-2394.77151449,0.00012299,2]
[347294399,1735663840625,-6080.0,0.00012299,2]
[347294401,1735663840636,-17439.71609368,0.00012299,2]
[347294544,1735663842046,-500.0,0.00012299,2]
[347294571,1735663842297,-392.94,0.00012299,2]
[347294711,1735663843496,-4584.2756899,0.00012299,2]
[347294713,1735663843509,-687.94347,0.00012299,2]
[347294715,1735663843520,-1254.32754042,0.00012299,2]
[347294721,1735663843562,-2697.17970122,0.00012299,2]
[347294723,1735663843573,-8400.0000004,0.00012299,2]
[347294729,1735663843703,-2274.1156254,0.00012299,2]
[347294731,1735663843712,-35611.08437462,0.000125,2]
[347294733,1735663843724,-981.88206686,0.000125,2]
[347294735,1735663843735,-1109.5628542,0.000125,2]
[347294737,1735663843746,-2239.10260521,0.000125,2]
[347294741,1735663843773,-67507.41442555,0.000125,2]
[347294743,1735663843784,-19313.53129151,0.000125,2]
[347294749,1735663843826,-973.1567301,0.000125,2]
[347294751,1735663843837,-146905.98328647,0.000125,2]
[347294753,1735663843849,-1133128.58824312,0.000125,2]
[347294756,1735663843859,-245.0,0.000125,2]
[347294758,1735663843868,-245.0,0.000125,2]
[347294760,1735663843877,-245.0,0.000125,2]
[347294762,1735663843886,-245.0,0.000125,2]
[347294764,1735663843896,-245.0,0.000125,2]
[347294766,1735663843905,-245.0,0.000125,2]